[Event "December 12 Early 2023"]
[Site "https://www.chess.com"]
[Date "2023.12.12"]
[Round "7"]
[White "Grutter, Tim"]
[Black "Silvestre, Christian"]
[Result "1-0"]
[Board "109"]
[TimeControl "180+1"]
[WhiteFideId "1057472"]
[BlackFideId "30956269"]
[WhiteElo "2515"]
[BlackElo "2342"]
[WhiteTeam "NED"]
[BlackTeam "USA"]
[WhiteClock "0:00:06"]
[BlackClock "0:00:06"]

1. d3 {[%clk 0:03:00]}  e5 {[%clk 0:02:58]} 2. Nf3 {[%clk 0:03:01]}  Nc6 {[%clk 0:02:57]} 3. g3 {[%clk 0:03:01]}  g6 {[%clk 0:02:57]} 4. Bg2 {[%clk 0:03:01]}  Bg7 {[%clk 0:02:58]} 5. O-O {[%clk 0:03:00]}  Nge7 {[%clk 0:02:58]} 6. e4 {[%clk 0:02:50]}  O-O {[%clk 0:02:59]} 7. Nc3 {[%clk 0:02:48]}  d5 {[%clk 0:02:58]} 8. exd5 {[%clk 0:02:40]}  Nxd5 {[%clk 0:02:49]} 9. Bg5 {[%clk 0:02:23]}  Qd6 {[%clk 0:02:28]} 10. Ne4 {[%clk 0:02:15]}  Qe6 {[%clk 0:02:22]} 11. Qd2 {[%clk 0:02:08]}  f6 {[%clk 0:02:17]} 12. Bh6 {[%clk 0:02:06]}  b6 {[%clk 0:02:07]} 13. Rfe1 {[%clk 0:01:57]}  Qd7 {[%clk 0:01:58]} 14. Rad1 {[%clk 0:01:45]}  Bb7 {[%clk 0:01:48]} 15. d4 {[%clk 0:01:38]}  f5 {[%clk 0:01:43]} 16. Nc3 {[%clk 0:01:08]}  e4 {[%clk 0:01:36]} 17. Ne5 {[%clk 0:00:58]}  Qe6 {[%clk 0:01:17]} 18. Bxg7 {[%clk 0:00:50]}  Kxg7 {[%clk 0:01:13]} 19. Nxd5 {[%clk 0:00:39]}  Qxd5 {[%clk 0:01:11]} 20. c4 {[%clk 0:00:39]}  Qd6 {[%clk 0:01:06]} 21. Nxc6 {[%clk 0:00:34]}  Bxc6 {[%clk 0:01:02]} 22. Qc3 {[%clk 0:00:30]}  Kg8 {[%clk 0:00:52]} 23. b4 {[%clk 0:00:22]}  Rad8 {[%clk 0:00:41]} 24. d5 {[%clk 0:00:22]}  Be8 {[%clk 0:00:39]} 25. c5 {[%clk 0:00:21]}  Qf6 {[%clk 0:00:38]} 26. Qc4 {[%clk 0:00:20]}  Bf7 {[%clk 0:00:37]} 27. f3 {[%clk 0:00:17]}  exf3 {[%clk 0:00:18]} 28. Bxf3 {[%clk 0:00:18]}  c6 {[%clk 0:00:17]} 29. cxb6 {[%clk 0:00:17]}  cxd5 {[%clk 0:00:15]} 30. Bxd5 {[%clk 0:00:16]}  Qxb6+ {[%clk 0:00:16]} 31. Kf1 {[%clk 0:00:11]}  Rxd5 {[%clk 0:00:13]} 32. Rxd5 {[%clk 0:00:12]}  Bxd5 {[%clk 0:00:10]} 33. Qxd5+ {[%clk 0:00:13]}  Kg7 {[%clk 0:00:09]} 34. Re7+ {[%clk 0:00:12]}  Kh6 {[%clk 0:00:09]} 35. Qd2+ {[%clk 0:00:11]}  f4 {[%clk 0:00:09]} 36. gxf4 {[%clk 0:00:09]}  Qb5+ {[%clk 0:00:09]} 37. Ke1 {[%clk 0:00:07]}  Qf5 {[%clk 0:00:09]} 38. Qd4 {[%clk 0:00:03]}  Qb1+ {[%clk 0:00:06]} 39. Kf2 {[%clk 0:00:03]}  Qxa2+ {[%clk 0:00:07]} 40. Re2 {[%clk 0:00:02]}  Qf7 {[%clk 0:00:06]} 41. Kg3 {[%clk 0:00:01]}  Qf5 {[%clk 0:00:06]} 42. Re7 {[%clk 0:00:02]}  Qf6 {[%clk 0:00:06]} 43. Qxf6 {[%clk 0:00:01]}  Rxf6 {[%clk 0:00:07]} 44. Rxa7 {[%clk 0:00:01]}  Rb6 {[%clk 0:00:08]} 45. Ra4 {[%clk 0:00:01]}  g5 {[%clk 0:00:08]} 46. fxg5+ {[%clk 0:00:02]}  Kxg5 {[%clk 0:00:08]} 47. Ra5+ {[%clk 0:00:02]}  Kg6 {[%clk 0:00:08]} 48. b5 {[%clk 0:00:03]}  Rb8 {[%clk 0:00:07]} 49. Kg4 {[%clk 0:00:02]}  h5+ {[%clk 0:00:07]} 50. Kf4 {[%clk 0:00:01]}  Rf8+ {[%clk 0:00:06]} 51. Ke5 {[%clk 0:00:02]}  Rb8 {[%clk 0:00:06]} 52. Kd6 {[%clk 0:00:02]}  Kg5 {[%clk 0:00:07]} 53. Kc7 {[%clk 0:00:02]}  Rf8 {[%clk 0:00:06]} 54. b6+ {[%clk 0:00:03]}  Kg4 {[%clk 0:00:06]} 55. b7 {[%clk 0:00:03]}  h4 {[%clk 0:00:07]} 56. b8=Q {[%clk 0:00:03]}  Rxb8 {[%clk 0:00:07]} 57. Kxb8 {[%clk 0:00:04]}  Kh3 {[%clk 0:00:07]} 58. Ra2 {[%clk 0:00:05]}  Kg4 {[%clk 0:00:07]} 59. Kc7 {[%clk 0:00:05]}  Kf3 {[%clk 0:00:06]} 60. Kd7 {[%clk 0:00:06]}  h3 {[%clk 0:00:07]} 61. Ke7 {[%clk 0:00:07]}  Kg4 {[%clk 0:00:08]} 62. Kf6 {[%clk 0:00:07]}  Kh4 {[%clk 0:00:06]} 63. Kf5 {[%clk 0:00:06]} 1-0

[Event "December 12 Early 2023"]
[Site "https://www.chess.com"]
[Date "2023.12.12"]
[Round "7"]
[White "Ernst, Luca"]
[Black "Krzywda, Andrzej"]
[Result "1-0"]
[Board "110"]
[TimeControl "180+1"]
[WhiteFideId "45117055"]
[BlackFideId "1114565"]
[WhiteElo "2328"]
[BlackElo "2515"]
[WhiteTeam "FRA"]
[BlackTeam "POL"]
[WhiteClock "0:00:08"]
[BlackClock "0:00:35"]

1. Nf3 {[%clk 0:03:00]}  d5 {[%clk 0:02:59]} 2. g3 {[%clk 0:03:00]}  c5 {[%clk 0:03:00]} 3. Bg2 {[%clk 0:03:00]}  Nc6 {[%clk 0:03:00]} 4. d4 {[%clk 0:03:00]}  Nf6 {[%clk 0:03:00]} 5. O-O {[%clk 0:03:00]}  e6 {[%clk 0:03:00]} 6. c4 {[%clk 0:02:58]}  dxc4 {[%clk 0:03:01]} 7. dxc5 {[%clk 0:02:59]}  Qxd1 {[%clk 0:03:01]} 8. Rxd1 {[%clk 0:03:00]}  Bxc5 {[%clk 0:03:02]} 9. Nbd2 {[%clk 0:03:00]}  c3 {[%clk 0:03:02]} 10. bxc3 {[%clk 0:03:01]}  O-O {[%clk 0:03:03]} 11. Nb3 {[%clk 0:03:01]}  Be7 {[%clk 0:03:03]} 12. Nbd4 {[%clk 0:02:57]}  Bd7 {[%clk 0:03:02]} 13. Rb1 {[%clk 0:02:53]}  b6 {[%clk 0:02:58]} 14. Nb5 {[%clk 0:02:44]}  Rac8 {[%clk 0:02:46]} 15. Bf4 {[%clk 0:02:27]}  Nd5 {[%clk 0:02:38]} 16. Bd6 {[%clk 0:02:04]}  Rfd8 {[%clk 0:02:35]} 17. Bxe7 {[%clk 0:02:03]}  Ncxe7 {[%clk 0:02:31]} 18. Nd6 {[%clk 0:00:31]}  Rc5 {[%clk 0:02:21]} 19. Nb7 {[%clk 0:00:14]}  Rdc8 {[%clk 0:02:02]} 20. Nxc5 {[%clk 0:00:14]}  Rxc5 {[%clk 0:02:03]} 21. Ne5 {[%clk 0:00:14]}  Ba4 {[%clk 0:01:57]} 22. Rd4 {[%clk 0:00:12]}  b5 {[%clk 0:01:57]} 23. c4 {[%clk 0:00:11]}  bxc4 {[%clk 0:01:43]} 24. Rb8+ {[%clk 0:00:10]}  Nc8 {[%clk 0:01:44]} 25. Bxd5 {[%clk 0:00:08]}  exd5 {[%clk 0:01:39]} 26. Rxd5 {[%clk 0:00:09]}  Be8 {[%clk 0:00:46]} 27. Rxc5 {[%clk 0:00:08]}  Nd6 {[%clk 0:00:47]} 28. Rxe8+ {[%clk 0:00:07]}  Nxe8 {[%clk 0:00:47]} 29. Rxc4 {[%clk 0:00:06]}  f6 {[%clk 0:00:48]} 30. Rc8 {[%clk 0:00:06]}  Kf8 {[%clk 0:00:48]} 31. Nc6 {[%clk 0:00:06]}  Kf7 {[%clk 0:00:47]} 32. Rxe8 {[%clk 0:00:06]}  Kxe8 {[%clk 0:00:47]} 33. Nxa7 {[%clk 0:00:07]}  Kd7 {[%clk 0:00:48]} 34. Nb5 {[%clk 0:00:07]}  Kc6 {[%clk 0:00:48]} 35. a4 {[%clk 0:00:08]}  Kc5 {[%clk 0:00:49]} 36. Nc3 {[%clk 0:00:09]}  Kb4 {[%clk 0:00:49]} 37. e4 {[%clk 0:00:09]}  f5 {[%clk 0:00:40]} 38. e5 {[%clk 0:00:09]}  Kc5 {[%clk 0:00:40]} 39. a5 {[%clk 0:00:09]}  Kc6 {[%clk 0:00:35]} 40. f4 {[%clk 0:00:08]} 1-0

[Event "December 12 Early 2023"]
[Site "https://www.chess.com"]
[Date "2023.12.12"]
[Round "7"]
[White "Valle Luis, Leo"]
[Black "Santos, Rafael Ventura Dos"]
[Result "0-1"]
[Board "111"]
[TimeControl "180+1"]
[WhiteFideId "54577187"]
[BlackFideId "2122227"]
[WhiteElo "2514"]
[BlackElo "2296"]
[WhiteTeam "ESP"]
[BlackTeam "BRA"]
[WhiteClock "0:00:02"]
[BlackClock "0:01:03"]

1. e4 {[%clk 0:03:00]}  c5 {[%clk 0:02:59]} 2. Nf3 {[%clk 0:02:56]}  d6 {[%clk 0:02:59]} 3. d4 {[%clk 0:02:53]}  cxd4 {[%clk 0:03:00]} 4. Nxd4 {[%clk 0:02:54]}  Nf6 {[%clk 0:03:00]} 5. Nc3 {[%clk 0:02:54]}  a6 {[%clk 0:03:01]} 6. Bg5 {[%clk 0:02:54]}  Nbd7 {[%clk 0:02:59]} 7. Bc4 {[%clk 0:02:48]}  Qb6 {[%clk 0:02:55]} 8. Bb3 {[%clk 0:02:47]}  Qc5 {[%clk 0:02:49]} 9. Be3 {[%clk 0:02:45]}  Qc7 {[%clk 0:02:47]} 10. f4 {[%clk 0:02:41]}  Nc5 {[%clk 0:02:45]} 11. Qf3 {[%clk 0:02:41]}  e6 {[%clk 0:02:44]} 12. O-O-O {[%clk 0:02:36]}  b5 {[%clk 0:02:43]} 13. a3 {[%clk 0:02:30]}  Bb7 {[%clk 0:02:42]} 14. f5 {[%clk 0:02:11]}  e5 {[%clk 0:02:35]} 15. Nde2 {[%clk 0:01:56]}  Nxb3+ {[%clk 0:02:34]} 16. cxb3 {[%clk 0:01:57]}  Bxe4 {[%clk 0:02:34]} 17. Qh3 {[%clk 0:01:50]}  Rc8 {[%clk 0:02:28]} 18. Rhe1 {[%clk 0:01:40]}  a5 {[%clk 0:02:28]} 19. b4 {[%clk 0:01:32]}  axb4 {[%clk 0:02:27]} 20. axb4 {[%clk 0:01:33]}  Qc4 {[%clk 0:02:28]} 21. g4 {[%clk 0:01:19]}  Qa2 {[%clk 0:02:27]} 22. Rf1 {[%clk 0:01:10]}  Qb1+ {[%clk 0:02:25]} 23. Kd2 {[%clk 0:01:11]}  Qxb2+ {[%clk 0:02:22]} 24. Ke1 {[%clk 0:01:10]}  Rxc3 {[%clk 0:02:22]} 25. Nxc3 {[%clk 0:01:09]}  Qxc3+ {[%clk 0:02:23]} 26. Kf2 {[%clk 0:01:08]}  Bb7 {[%clk 0:02:11]} 27. g5 {[%clk 0:01:05]}  Ne4+ {[%clk 0:02:10]} 28. Kg1 {[%clk 0:01:04]}  Be7 {[%clk 0:02:07]} 29. Rc1 {[%clk 0:00:54]}  Qxb4 {[%clk 0:02:04]} 30. f6 {[%clk 0:00:44]}  gxf6 {[%clk 0:02:02]} 31. Rc8+ {[%clk 0:00:40]}  Bxc8 {[%clk 0:02:03]} 32. Qxc8+ {[%clk 0:00:40]}  Bd8 {[%clk 0:02:03]} 33. Bb6 {[%clk 0:00:40]}  O-O {[%clk 0:01:58]} 34. Bxd8 {[%clk 0:00:29]}  Qd4+ {[%clk 0:01:58]} 35. Kg2 {[%clk 0:00:28]}  Qd2+ {[%clk 0:01:57]} 36. Kg1 {[%clk 0:00:27]}  Nxg5 {[%clk 0:01:52]} 37. Qd7 {[%clk 0:00:20]}  Qe3+ {[%clk 0:01:45]} 38. Kg2 {[%clk 0:00:18]}  Qe4+ {[%clk 0:01:43]} 39. Kg3 {[%clk 0:00:16]}  Qe3+ {[%clk 0:01:38]} 40. Kg2 {[%clk 0:00:17]}  Qe2+ {[%clk 0:01:37]} 41. Rf2 {[%clk 0:00:17]}  Qe4+ {[%clk 0:01:38]} 42. Kg3 {[%clk 0:00:16]}  Qg6 {[%clk 0:01:10]} 43. Rb2 {[%clk 0:00:04]}  Qd3+ {[%clk 0:01:07]} 44. Kg2 {[%clk 0:00:03]}  Qf3+ {[%clk 0:01:06]} 45. Kg1 {[%clk 0:00:02]}  Nh3+ {[%clk 0:01:07]} 46. Qxh3 {[%clk 0:00:02]}  Qxh3 {[%clk 0:01:07]} 47. Bxf6 {[%clk 0:00:02]}  Qe3+ {[%clk 0:01:03]} 48. Kh1 {[%clk 0:00:02]}  Qf3+ {[%clk 0:01:03]} 49. Rg2+ {[%clk 0:00:02]}  Qxg2+ {[%clk 0:01:03]} 50. Kxg2 {[%clk 0:00:02]}  Rc8 {[%clk 0:01:03]} 0-1

[Event "December 12 Early 2023"]
[Site "https://www.chess.com"]
[Date "2023.12.12"]
[Round "7"]
[White "Barath1308"]
[Black "Andreev, Konstantin"]
[Result "0-1"]
[Board "119"]
[TimeControl "180+1"]
[BlackFideId "24239305"]
[WhiteElo "2381"]
[BlackElo "2548"]
[BlackTeam "ITA"]
[WhiteClock "0:00:02"]
[BlackClock "0:01:38"]

1. d4 {[%clk 0:03:00]}  Nf6 {[%clk 0:02:52]} 2. Nf3 {[%clk 0:02:58]}  d5 {[%clk 0:02:52]} 3. c4 {[%clk 0:02:56]}  e6 {[%clk 0:02:52]} 4. g3 {[%clk 0:02:54]}  Bb4+ {[%clk 0:02:52]} 5. Bd2 {[%clk 0:02:53]}  a5 {[%clk 0:02:52]} 6. Bg2 {[%clk 0:02:53]}  O-O {[%clk 0:02:52]} 7. O-O {[%clk 0:02:53]}  dxc4 {[%clk 0:02:52]} 8. Qc2 {[%clk 0:02:39]}  Bxd2 {[%clk 0:02:52]} 9. Nbxd2 {[%clk 0:02:38]}  b5 {[%clk 0:02:53]} 10. a4 {[%clk 0:02:38]}  c6 {[%clk 0:02:52]} 11. b3 {[%clk 0:02:37]}  cxb3 {[%clk 0:02:52]} 12. Nxb3 {[%clk 0:02:36]}  Nd5 {[%clk 0:02:49]} 13. Ne5 {[%clk 0:02:33]}  Qd6 {[%clk 0:02:41]} 14. Rfc1 {[%clk 0:02:31]}  Ra6 {[%clk 0:02:33]} 15. Qc5 {[%clk 0:02:30]}  Qxc5 {[%clk 0:02:27]} 16. Nxc5 {[%clk 0:02:28]}  Ra7 {[%clk 0:02:26]} 17. e4 {[%clk 0:02:07]}  Nb4 {[%clk 0:02:21]} 18. Bf1 {[%clk 0:02:04]}  f6 {[%clk 0:02:17]} 19. Nf3 {[%clk 0:01:58]}  bxa4 {[%clk 0:02:10]} 20. Rxa4 {[%clk 0:01:57]}  Nd7 {[%clk 0:02:10]} 21. Nxe6 {[%clk 0:01:54]}  Re8 {[%clk 0:02:09]} 22. Nc5 {[%clk 0:00:56]}  Nxc5 {[%clk 0:02:08]} 23. Rxc5 {[%clk 0:00:54]}  Rxe4 {[%clk 0:02:08]} 24. Raxa5 {[%clk 0:00:52]}  Rxa5 {[%clk 0:02:07]} 25. Rxa5 {[%clk 0:00:51]}  Bg4 {[%clk 0:02:08]} 26. Bc4+ {[%clk 0:00:35]}  Kf8 {[%clk 0:02:08]} 27. Ra8+ {[%clk 0:00:35]}  Ke7 {[%clk 0:02:08]} 28. Ra7+ {[%clk 0:00:34]}  Kd6 {[%clk 0:02:08]} 29. Kg2 {[%clk 0:00:31]}  Bxf3+ {[%clk 0:02:07]} 30. Kxf3 {[%clk 0:00:31]}  Rxd4 {[%clk 0:02:08]} 31. Bg8 {[%clk 0:00:31]}  c5 {[%clk 0:02:03]} 32. Rxg7 {[%clk 0:00:29]}  c4 {[%clk 0:02:03]} 33. Bxh7 {[%clk 0:00:26]}  c3 {[%clk 0:02:02]} 34. Rf7 {[%clk 0:00:18]}  Ke5 {[%clk 0:01:44]} 35. Rc7 {[%clk 0:00:17]}  Nd5 {[%clk 0:01:44]} 36. Rc8 {[%clk 0:00:15]}  f5 {[%clk 0:01:44]} 37. h4 {[%clk 0:00:13]}  Rd3+ {[%clk 0:01:44]} 38. Ke2 {[%clk 0:00:13]}  Kd4 {[%clk 0:01:44]} 39. Bxf5 {[%clk 0:00:12]}  Rd2+ {[%clk 0:01:45]} 40. Kf1 {[%clk 0:00:12]}  Ke5 {[%clk 0:01:38]} 41. Bg6 {[%clk 0:00:10]}  Ne7 {[%clk 0:01:35]} 42. Bh7 {[%clk 0:00:09]}  Nxc8 {[%clk 0:01:35]} 43. h5 {[%clk 0:00:08]}  c2 {[%clk 0:01:35]} 44. Bxc2 {[%clk 0:00:08]}  Rxc2 {[%clk 0:01:36]} 45. g4 {[%clk 0:00:06]}  Kf6 {[%clk 0:01:36]} 46. f4 {[%clk 0:00:05]}  Rc4 {[%clk 0:01:37]} 47. g5+ {[%clk 0:00:05]}  Kg7 {[%clk 0:01:37]} 48. h6+ {[%clk 0:00:05]}  Kg6 {[%clk 0:01:38]} 49. f5+ {[%clk 0:00:05]}  Kxf5 {[%clk 0:01:38]} 50. h7 {[%clk 0:00:02]}  Rh4 {[%clk 0:01:38]} 0-1

[Event "December 12 Early 2023"]
[Site "https://www.chess.com"]
[Date "2023.12.12"]
[Round "7"]
[White "IranianCheetah"]
[Black "Baches Garcia, Guillermo"]
[Result "1-0"]
[Board "121"]
[TimeControl "180+1"]
[BlackFideId "2209764"]
[WhiteElo "2337"]
[BlackElo "2488"]
[BlackTeam "ESP"]
[WhiteClock "0:00:02"]
[BlackClock "0:00:00"]

1. e4 {[%clk 0:03:00]}  d5 {[%clk 0:02:59]} 2. exd5 {[%clk 0:03:00]}  Qxd5 {[%clk 0:03:00]} 3. Nc3 {[%clk 0:03:00]}  Qa5 {[%clk 0:03:00]} 4. d4 {[%clk 0:03:00]}  Nf6 {[%clk 0:03:01]} 5. Nf3 {[%clk 0:03:01]}  Bf5 {[%clk 0:03:01]} 6. Bc4 {[%clk 0:03:00]}  e6 {[%clk 0:03:01]} 7. Ne5 {[%clk 0:03:00]}  Nbd7 {[%clk 0:02:56]} 8. Qe2 {[%clk 0:02:55]}  Nxe5 {[%clk 0:02:46]} 9. dxe5 {[%clk 0:02:52]}  Ne4 {[%clk 0:02:43]} 10. Bd2 {[%clk 0:02:38]}  Nxd2 {[%clk 0:02:34]} 11. Kxd2 {[%clk 0:02:22]}  O-O-O+ {[%clk 0:02:24]} 12. Bd3 {[%clk 0:02:17]}  Bb4 {[%clk 0:02:13]} 13. g4 {[%clk 0:02:05]}  Bg6 {[%clk 0:02:05]} 14. f4 {[%clk 0:02:04]}  Rd4 {[%clk 0:01:55]} 15. Rhf1 {[%clk 0:01:34]}  Bxd3 {[%clk 0:01:37]} 16. cxd3 {[%clk 0:01:33]}  Rhd8 {[%clk 0:01:36]} 17. Rf3 {[%clk 0:01:30]}  g6 {[%clk 0:01:21]} 18. a3 {[%clk 0:01:13]}  Bxc3+ {[%clk 0:01:14]} 19. bxc3 {[%clk 0:01:13]}  Ra4 {[%clk 0:01:11]} 20. Rff1 {[%clk 0:00:35]}  Rxa3 {[%clk 0:01:03]} 21. Rxa3 {[%clk 0:00:35]}  Qxa3 {[%clk 0:01:04]} 22. Rc1 {[%clk 0:00:32]}  Qa4 {[%clk 0:00:55]} 23. Qe3 {[%clk 0:00:27]}  b6 {[%clk 0:00:45]} 24. Rc2 {[%clk 0:00:24]}  Qc6 {[%clk 0:00:44]} 25. c4 {[%clk 0:00:20]}  Qg2+ {[%clk 0:00:39]} 26. Qe2 {[%clk 0:00:21]}  Qc6 {[%clk 0:00:34]} 27. Kc3 {[%clk 0:00:19]}  Kb7 {[%clk 0:00:32]} 28. Qg2 {[%clk 0:00:19]}  a5 {[%clk 0:00:28]} 29. Qxc6+ {[%clk 0:00:17]}  Kxc6 {[%clk 0:00:29]} 30. d4 {[%clk 0:00:17]}  Rh8 {[%clk 0:00:23]} 31. Kd3 {[%clk 0:00:13]}  h5 {[%clk 0:00:21]} 32. g5 {[%clk 0:00:13]}  Rd8 {[%clk 0:00:21]} 33. Ke4 {[%clk 0:00:13]}  Kb7 {[%clk 0:00:20]} 34. h4 {[%clk 0:00:12]}  c6 {[%clk 0:00:19]} 35. Ra2 {[%clk 0:00:11]}  Ka6 {[%clk 0:00:18]} 36. Ra1 {[%clk 0:00:09]}  Rd7 {[%clk 0:00:18]} 37. Ra2 {[%clk 0:00:09]}  b5 {[%clk 0:00:19]} 38. c5 {[%clk 0:00:08]}  b4 {[%clk 0:00:18]} 39. Kd3 {[%clk 0:00:07]}  Kb5 {[%clk 0:00:19]} 40. Ra1 {[%clk 0:00:05]}  a4 {[%clk 0:00:19]} 41. f5 {[%clk 0:00:04]}  gxf5 {[%clk 0:00:17]} 42. g6 {[%clk 0:00:02]}  fxg6 {[%clk 0:00:16]} 43. Rg1 {[%clk 0:00:03]}  Rg7 {[%clk 0:00:16]} 44. Ke3 {[%clk 0:00:03]}  Kc4 {[%clk 0:00:16]} 45. Rc1+ {[%clk 0:00:03]}  Kb3 {[%clk 0:00:16]} 46. d5 {[%clk 0:00:03]}  exd5 {[%clk 0:00:15]} 47. Kf4 {[%clk 0:00:03]}  Kb2 {[%clk 0:00:15]} 48. Re1 {[%clk 0:00:03]}  a3 {[%clk 0:00:14]} 49. Re2+ {[%clk 0:00:03]}  Kb1 {[%clk 0:00:14]} 50. Re1+ {[%clk 0:00:03]}  Kc2 {[%clk 0:00:14]} 51. Re2+ {[%clk 0:00:04]}  Kc3 {[%clk 0:00:14]} 52. e6 {[%clk 0:00:03]}  Re7 {[%clk 0:00:14]} 53. Ke5 {[%clk 0:00:02]}  b3 {[%clk 0:00:14]} 54. Kd6 {[%clk 0:00:02]}  Re8 {[%clk 0:00:13]} 55. Kd7 {[%clk 0:00:02]}  Rxe6 {[%clk 0:00:13]} 56. Rxe6 {[%clk 0:00:02]}  b2 {[%clk 0:00:12]} 57. Re3+ {[%clk 0:00:01]}  Kd2 {[%clk 0:00:11]} 58. Rxa3 {[%clk 0:00:01]}  b1=Q {[%clk 0:00:11]} 59. Kxc6 {[%clk 0:00:02]}  d4 {[%clk 0:00:08]} 60. Ra4 {[%clk 0:00:01]}  Qe4+ {[%clk 0:00:07]} 61. Kd6 {[%clk 0:00:01]}  Qf4+ {[%clk 0:00:06]} 62. Kd7 {[%clk 0:00:01]}  Qe5 {[%clk 0:00:02]} 63. Ra2+ {[%clk 0:00:01]}  Ke3 {[%clk 0:00:01]} 64. c6 {[%clk 0:00:02]}  Ke4 {[%clk 0:00:00]} 65. Re2+ {[%clk 0:00:02]} 1-0

[Event "December 12 Early 2023"]
[Site "https://www.chess.com"]
[Date "2023.12.12"]
[Round "7"]
[White "Begunov, Konstantin"]
[Black "Mishra, Manoj"]
[Result "0-1"]
[Board "124"]
[TimeControl "180+1"]
[WhiteFideId "4118510"]
[BlackFideId "5006007"]
[WhiteElo "2431"]
[BlackElo "2264"]
[WhiteTeam "RUS"]
[BlackTeam "IND"]
[WhiteClock "0:00:26"]
[BlackClock "0:00:04"]

1. d4 {[%clk 0:03:00]}  Nf6 {[%clk 0:02:48]} 2. c4 {[%clk 0:03:00]}  g6 {[%clk 0:02:48]} 3. f3 {[%clk 0:03:00]}  Bg7 {[%clk 0:02:45]} 4. e4 {[%clk 0:03:00]}  d6 {[%clk 0:02:46]} 5. Nc3 {[%clk 0:03:01]}  O-O {[%clk 0:02:44]} 6. Be3 {[%clk 0:03:02]}  Nc6 {[%clk 0:02:45]} 7. Nge2 {[%clk 0:03:01]}  a6 {[%clk 0:02:45]} 8. a3 {[%clk 0:03:02]}  e5 {[%clk 0:02:40]} 9. d5 {[%clk 0:03:01]}  Ne7 {[%clk 0:02:39]} 10. Qd2 {[%clk 0:03:01]}  Nd7 {[%clk 0:02:36]} 11. O-O-O {[%clk 0:02:56]}  f5 {[%clk 0:02:35]} 12. b4 {[%clk 0:02:56]}  a5 {[%clk 0:02:30]} 13. Kb2 {[%clk 0:02:53]}  axb4 {[%clk 0:02:30]} 14. axb4 {[%clk 0:02:54]}  c6 {[%clk 0:02:28]} 15. dxc6 {[%clk 0:02:35]}  Nxc6 {[%clk 0:02:25]} 16. Qxd6 {[%clk 0:02:33]}  Rf6 {[%clk 0:01:54]} 17. Qd5+ {[%clk 0:02:11]}  Kh8 {[%clk 0:01:54]} 18. Qb5 {[%clk 0:02:10]}  fxe4 {[%clk 0:01:35]} 19. Nxe4 {[%clk 0:02:03]}  Qf8 {[%clk 0:01:11]} 20. c5 {[%clk 0:01:43]}  Qf7 {[%clk 0:01:01]} 21. N2c3 {[%clk 0:01:41]}  Nd4 {[%clk 0:00:55]} 22. Qc4 {[%clk 0:01:38]}  Qf8 {[%clk 0:00:22]} 23. Nxf6 {[%clk 0:01:35]}  Nxf6 {[%clk 0:00:17]} 24. Bxd4 {[%clk 0:01:19]}  exd4 {[%clk 0:00:18]} 25. Rxd4 {[%clk 0:01:19]}  Nd7 {[%clk 0:00:17]} 26. Rf4 {[%clk 0:01:05]}  Qe7 {[%clk 0:00:13]} 27. Rf7 {[%clk 0:00:52]}  Qe1 {[%clk 0:00:12]} 28. Rxg7 {[%clk 0:00:44]}  Qd2+ {[%clk 0:00:09]} 29. Kb3 {[%clk 0:00:39]}  Kxg7 {[%clk 0:00:07]} 30. Bd3 {[%clk 0:00:33]}  Ne5 {[%clk 0:00:06]} 31. Qd4 {[%clk 0:00:32]}  Be6+ {[%clk 0:00:06]} 32. Nd5 {[%clk 0:00:27]}  Qa2+ {[%clk 0:00:05]} 33. Kc3 {[%clk 0:00:26]}  Ra3# {[%clk 0:00:04]} 0-1

[Event "December 12 Early 2023"]
[Site "https://www.chess.com"]
[Date "2023.12.12"]
[Round "7"]
[White "Gavrilov, Maxim"]
[Black "Georg, Heinz"]
[Result "1-0"]
[Board "131"]
[TimeControl "180+1"]
[WhiteFideId "24271454"]
[BlackFideId "4607295"]
[WhiteElo "2499"]
[BlackElo "2353"]
[WhiteTeam "RUS"]
[BlackTeam "GER"]
[WhiteClock "0:00:13"]
[BlackClock "0:00:06"]

1. d4 {[%clk 0:03:00]}  f5 {[%clk 0:02:59]} 2. c4 {[%clk 0:03:00]}  Nf6 {[%clk 0:02:59]} 3. Nf3 {[%clk 0:03:00]}  g6 {[%clk 0:02:57]} 4. g3 {[%clk 0:03:01]}  Bg7 {[%clk 0:02:57]} 5. Bg2 {[%clk 0:03:01]}  O-O {[%clk 0:02:58]} 6. O-O {[%clk 0:03:01]}  d6 {[%clk 0:02:58]} 7. Nc3 {[%clk 0:03:01]}  Qe8 {[%clk 0:02:58]} 8. d5 {[%clk 0:02:57]}  a5 {[%clk 0:02:58]} 9. Nd4 {[%clk 0:02:56]}  Na6 {[%clk 0:02:58]} 10. a3 {[%clk 0:02:54]}  Bd7 {[%clk 0:02:57]} 11. Rb1 {[%clk 0:02:52]}  c6 {[%clk 0:02:57]} 12. b4 {[%clk 0:02:41]}  axb4 {[%clk 0:02:56]} 13. axb4 {[%clk 0:02:42]}  Nxb4 {[%clk 0:02:55]} 14. Ne6 {[%clk 0:02:08]}  Bxe6 {[%clk 0:02:53]} 15. dxe6 {[%clk 0:02:09]}  c5 {[%clk 0:02:45]} 16. Bxb7 {[%clk 0:02:08]}  Rb8 {[%clk 0:02:39]} 17. Bg2 {[%clk 0:02:05]}  Qc8 {[%clk 0:02:32]} 18. e4 {[%clk 0:01:27]}  fxe4 {[%clk 0:02:15]} 19. Bg5 {[%clk 0:00:39]}  Qxe6 {[%clk 0:02:06]} 20. Bxf6 {[%clk 0:00:39]}  Bxf6 {[%clk 0:01:57]} 21. Nxe4 {[%clk 0:00:40]}  Bd4 {[%clk 0:01:52]} 22. Kh1 {[%clk 0:00:25]}  Kh8 {[%clk 0:01:43]} 23. Re1 {[%clk 0:00:20]}  Qf5 {[%clk 0:01:32]} 24. f4 {[%clk 0:00:19]}  Na2 {[%clk 0:01:18]} 25. Rxb8 {[%clk 0:00:18]}  Rxb8 {[%clk 0:01:19]} 26. Ng5 {[%clk 0:00:17]}  Rb2 {[%clk 0:01:01]} 27. Bh3 {[%clk 0:00:15]}  Nc3 {[%clk 0:00:37]} 28. Qf3 {[%clk 0:00:15]}  Qc2 {[%clk 0:00:33]} 29. Qa8+ {[%clk 0:00:14]}  Kg7 {[%clk 0:00:06]} 30. Rxe7+ {[%clk 0:00:13]} 1-0